bitfinex/quotes_BTCUSD_20251031
["timestamp","ask_amount","ask_price","bid_price","bid_amount"]
[1761942133990,3.52344809,109860.0,109850.0,0.00465606]
[1761942134224,3.6132671,109860.0,109850.0,0.00265606]
[1761942134451,3.6142671,109860.0,109850.0,0.00265606]
[1761942134676,0.52206645,109850.0,109840.0,0.0004]
[1761942134895,3.10526945,109850.0,109840.0,0.00044813]
[1761942135119,3.10726509,109850.0,109840.0,0.00044813]
[1761942135345,3.10526509,109850.0,109840.0,0.00044813]
[1761942135819,2.91880075,109850.0,109840.0,0.00044813]
[1761942136058,3.13704948,109850.0,109840.0,0.00044813]
[1761942136787,3.13704948,109850.0,109840.0,0.00244813]
[1761942137045,3.20549518,109850.0,109840.0,0.00244813]
[1761942138188,3.37574138,109840.0,109830.0,0.0004]
[1761942138402,3.43413572,109840.0,109830.0,0.00053122]
[1761942138622,3.44046572,109840.0,109830.0,0.00053122]
[1761942138858,3.44246572,109840.0,109830.0,0.00053122]
[1761942139084,3.44046572,109840.0,109830.0,0.00053122]
[1761942139535,3.01363654,109840.0,109830.0,0.00053122]
[1761942139954,3.01363654,109840.0,109830.0,0.00253122]
[1761942141975,2.58680736,109840.0,109830.0,0.00253122]
[1761942142228,2.22345736,109840.0,109830.0,0.02974122]
[1761942142472,2.2661053,109840.0,109830.0,0.00297494]
[1761942142796,2.6334022,109840.0,109830.0,0.03018494]
[1761942143019,0.6334022,109840.0,109830.0,0.03018494]
[1761942143265,0.6334022,109840.0,109830.0,0.01439494]
[1761942143526,0.64768403,109840.0,109830.0,0.01439494]
[1761942143747,0.19636485,109840.0,109830.0,0.23580454]
[1761942144171,0.21209485,109840.0,109830.0,0.03018494]
[1761942144576,0.63892403,109840.0,109830.0,0.03018494]
[1761942145031,0.62319403,109840.0,109830.0,0.05294494]
[1761942145254,0.63892403,109840.0,109830.0,0.05294494]
[1761942145464,0.63892403,109840.0,109830.0,0.21228454]
[1761942145675,0.63892403,109840.0,109830.0,0.03018494]
[1761942146128,0.19636485,109840.0,109830.0,0.23504454]
[1761942146798,0.01428183,109840.0,109830.0,0.23504454]
[1761942147459,0.19636485,109840.0,109830.0,0.05294494]
[1761942147676,0.62319403,109840.0,109830.0,0.05294494]
[1761942148110,0.62319403,109840.0,109830.0,0.05094494]
[1761942148351,0.21331416,109840.0,109830.0,0.05394494]
[1761942148564,0.19636485,109840.0,109830.0,0.05394494]
[1761942148769,0.18208302,109840.0,109830.0,0.05394494]
[1761942148976,0.18208302,109840.0,109830.0,0.23604454]
[1761942149185,0.20752911,109840.0,109830.0,0.05394494]
[1761942149403,0.22325911,109840.0,109830.0,0.05394494]
[1761942150281,0.63435829,109840.0,109830.0,0.23604454]
[1761942150543,0.02544609,109840.0,109830.0,0.23604454]
[1761942151239,3.21965196,109840.0,109830.0,0.00397494]
[1761942151453,2.72989324,109840.0,109830.0,0.00397494]
[1761942152098,2.74417553,109840.0,109830.0,0.00097494]
[1761942152307,3.08417553,109840.0,109830.0,0.00097494]
[1761942153614,3.08419923,109840.0,109830.0,0.00097494]
[1761942154029,3.08421104,109840.0,109830.0,0.00097494]
[1761942155367,3.09849646,109840.0,109830.0,0.00097494]
[1761942155582,3.09849933,109840.0,109830.0,0.00097494]
[1761942155792,3.52532851,109840.0,109830.0,0.00097494]
[1761942157814,3.51104309,109840.0,109830.0,0.00097494]
[1761942158276,3.08421391,109840.0,109830.0,0.00097494]
[1761942158934,3.51104309,109840.0,109830.0,0.00097494]
[1761942160749,3.52532854,109840.0,109830.0,0.00097494]
[1761942161218,3.09849934,109840.0,109830.0,0.00097494]
[1761942161460,3.95537067,109840.0,109830.0,0.00097494]
[1761942161675,3.51318507,109840.0,109830.0,0.00097494]
[1761942162306,3.49890278,109840.0,109830.0,0.00097494]
[1761942164415,3.51318806,109840.0,109830.0,0.00097494]
[1761942164842,1.51320806,109840.0,109830.0,0.00097494]
[1761942165243,1.52749023,109840.0,109830.0,0.00097494]
[1761942165457,1.50340023,109840.0,109830.0,0.00097494]
[1761942165673,1.52749023,109840.0,109830.0,0.00097494]
[1761942167082,0.73550006,109840.0,109830.0,0.01620494]
[1761942167317,0.74530789,109840.0,109830.0,0.00097494]
[1761942167994,0.72575522,109840.0,109830.0,0.00097494]
[1761942168719,1.15365539,109840.0,109830.0,0.00097494]
[1761942169423,0.72575522,109840.0,109830.0,0.00097494]
[1761942169865,1.15365539,109840.0,109830.0,0.00097494]
[1761942170529,1.16793728,109840.0,109830.0,0.00097494]
[1761942172346,1.1679414,109840.0,109830.0,0.00097494]
[1761942173044,0.7315404,109840.0,109830.0,0.00097494]
[1761942173278,1.11836281,109840.0,109830.0,0.00097494]
[1761942173514,1.14245281,109840.0,109830.0,0.00097494]
[1761942173764,1.15945759,109840.0,109830.0,0.00097494]
[1761942174663,1.14245281,109840.0,109830.0,0.00097494]
[1761942175141,1.12817092,109840.0,109830.0,0.00097494]
[1761942177414,1.12817092,109840.0,109830.0,0.18307454]
[1761942177826,1.12817092,109840.0,109830.0,0.00097494]
[1761942181978,0.27237058,109840.0,109830.0,0.18307454]
[1761942182185,0.67618075,109840.0,109830.0,0.19516454]
[1761942182389,1.11388564,109840.0,109830.0,0.00097494]
[1761942183193,1.11388564,109840.0,109830.0,0.18307454]
[1761942183791,1.11388564,109840.0,109830.0,0.00097494]
[1761942184547,0.68598547,109840.0,109830.0,0.18307454]
[1761942184750,0.66189547,109840.0,109830.0,0.19830454]
[1761942185810,0.67617985,109840.0,109830.0,0.19830454]
[1761942185966,0.67617985,109840.0,109830.0,0.23401454]
[1761942186172,1.10408002,109840.0,109830.0,0.02829494]
[1761942186798,1.10408002,109840.0,109830.0,0.21039454]
[1761942187004,0.67617985,109840.0,109830.0,0.21039454]
[1761942187590,0.67617985,109840.0,109830.0,0.02829494]
[1761942188656,0.67617985,109840.0,109830.0,0.21039454]
[1761942189302,0.67617985,109840.0,109830.0,0.02829494]
[1761942189930,0.67617985,109840.0,109830.0,0.21039454]
[1761942190212,0.66044985,109840.0,109830.0,0.05191494]
[1761942190403,0.67668985,109840.0,109830.0,0.05191494]
[1761942190628,0.67668985,109840.0,109830.0,0.23401454]
[1761942191077,0.66044985,109840.0,109830.0,0.23401454]
[1761942191304,0.23254968,109840.0,109830.0,0.23401454]
[1761942191543,0.62426757,109840.0,109830.0,0.23401454]
[1761942191755,0.46967873,109850.0,109840.0,0.18208302]
[1761942191960,0.46967873,109850.0,109840.0,0.02732]
[1761942191961,0.70236743,109850.0,109840.0,0.02732]
[1761942192161,0.900689,109850.0,109840.0,0.02732]
[1761942192445,0.900689,109850.0,109840.0,0.20940302]
[1761942192652,0.900689,109850.0,109840.0,0.02732]
[1761942192834,0.18208302,109840.0,109830.0,0.21834082]
[1761942193069,0.60998319,109840.0,109830.0,0.21834082]
[1761942193278,0.60998319,109840.0,109830.0,0.23357082]
[1761942194331,0.18208302,109840.0,109830.0,0.23557082]
[1761942194551,0.60998319,109840.0,109830.0,0.23557082]
[1761942194963,0.42790017,109840.0,109830.0,0.23557082]
[1761942195165,0.8987329,109850.0,109840.0,0.18208302]
[1761942195386,0.0142839,109850.0,109840.0,0.23287302]
[1761942195594,2.0,109860.0,109850.0,0.18206645]
[1761942195802,2.18205002,109860.0,109850.0,0.0346]
[1761942196006,0.42790017,109860.0,109850.0,0.21666645]
[1761942196211,0.42790017,109860.0,109850.0,0.23285645]
[1761942197870,3.0177521,109870.0,109860.0,0.18204988]
[1761942198104,2.18204988,109860.0,109850.0,0.21666645]
[1761942198313,0.18204988,109860.0,109850.0,0.21666645]
[1761942198742,0.60995005,109860.0,109850.0,0.23285645]
[1761942200261,0.61095005,109860.0,109850.0,0.23285645]
[1761942201749,1.05504022,109860.0,109850.0,0.02761]
[1761942201950,1.05504022,109860.0,109850.0,0.01142]
[1761942202588,1.05504022,109860.0,109850.0,0.02761]
[1761942204763,1.05504022,109860.0,109850.0,0.20967645]
[1761942205722,1.05504022,109860.0,109850.0,0.02761]
[1761942208364,0.62714005,109860.0,109850.0,0.02761]
[1761942209864,0.6414192,109860.0,109850.0,0.02761]
[1761942210323,1.05504022,109860.0,109850.0,0.02761]
[1761942212299,0.18206645,109850.0,109840.0,0.01164185]
[1761942212509,0.6866789,109850.0,109840.0,0.00022185]
[1761942212926,0.70095913,109850.0,109840.0,0.00022185]
[1761942213153,3.22039667,109850.0,109840.0,0.00022185]
[1761942213802,2.68428913,109850.0,109840.0,0.21040487]
[1761942214008,0.4421804,109850.0,109840.0,0.05113185]
[1761942214246,0.62424685,109850.0,109840.0,0.23321487]
[1761942214492,0.62424685,109850.0,109840.0,0.23521487]
[1761942216165,0.62424685,109850.0,109840.0,0.05313185]
[1761942217037,0.62424685,109850.0,109840.0,0.23521487]
[1761942218326,0.62424685,109850.0,109840.0,0.05313185]
[1761942218950,0.62424685,109850.0,109840.0,0.23521487]
[1761942219155,0.62424685,109850.0,109840.0,0.05313185]
[1761942219816,1.06172679,109850.0,109840.0,0.03032185]
[1761942221703,1.07601033,109850.0,109840.0,0.03032185]
[1761942223224,1.09029062,109850.0,109840.0,0.03032185]
[1761942223433,0.66220359,109850.0,109840.0,0.03032185]
[1761942224933,0.64667359,109850.0,109840.0,0.23508487]
[1761942225145,0.46460714,109850.0,109840.0,0.23508487]
[1761942225417,0.64667359,109850.0,109840.0,0.05300185]
[1761942225622,0.66332359,109850.0,109840.0,0.05300185]
[1761942225847,0.66332359,109850.0,109840.0,0.03032185]
[1761942226963,0.66332359,109850.0,109840.0,0.23508487]
[1761942227216,0.66332359,109850.0,109840.0,0.05300185]
[1761942227429,0.4419936,109850.0,109840.0,0.23508487]
[1761942228328,0.01428029,109850.0,109840.0,0.23508487]
[1761942230830,0.4419936,109850.0,109840.0,0.23508487]
[1761942232661,0.01428029,109850.0,109840.0,0.23508487]
[1761942232873,0.01428029,109850.0,109840.0,0.32662224]
[1761942233044,0.42771331,109860.0,109850.0,0.18206645]
[1761942233206,0.6459461,109860.0,109850.0,0.23178645]
[1761942234031,0.46389559,109860.0,109850.0,0.23178645]
[1761942234808,0.03618228,109860.0,109850.0,0.23178645]
[1761942235013,0.46389559,109860.0,109850.0,0.23178645]
[1761942235849,0.64594547,109860.0,109850.0,0.23178645]
[1761942236260,0.66022443,109860.0,109850.0,0.23178645]
[1761942236865,0.64594547,109860.0,109850.0,0.23178645]
[1761942237117,0.66259547,109860.0,109850.0,0.02704]
[1761942237374,0.64594547,109860.0,109850.0,0.23178645]
[1761942237569,0.64594547,109860.0,109850.0,0.04972]
[1761942238221,0.64594547,109860.0,109850.0,0.23178645]
[1761942238760,0.64594547,109860.0,109850.0,0.04972]
[1761942239103,0.64594547,109860.0,109850.0,0.23178645]
[1761942240083,0.46389559,109860.0,109850.0,0.23178645]
[1761942240297,0.42771331,109860.0,109850.0,0.23178645]
[1761942240470,0.47817813,109870.0,109860.0,0.18204988]
[1761942240675,0.6459289,109870.0,109860.0,0.23176988]
[1761942241650,0.6489289,109870.0,109860.0,0.23176988]
[1761942241864,0.6739089,109870.0,109860.0,0.02704]
[1761942242063,0.6709089,109870.0,109860.0,0.02704]
[1761942242266,0.6709089,109870.0,109860.0,0.23176988]
[1761942242481,0.6644877,109870.0,109860.0,0.23176988]
[1761942242717,0.6644877,109870.0,109860.0,0.04972]
[1761942242921,0.6634877,109870.0,109860.0,0.04972]
[1761942243127,0.6634877,109870.0,109860.0,0.23176988]
[1761942243535,0.6542589,109870.0,109860.0,0.23176988]
[1761942244183,0.6709089,109870.0,109860.0,0.04972]
[1761942244798,0.68019599,109870.0,109860.0,0.04972]
[1761942246873,0.1996504,109870.0,109860.0,0.04972]
[1761942247079,0.62736371,109870.0,109860.0,0.23176988]
[1761942247519,0.43604331,109870.0,109860.0,0.23176988]
[1761942247719,2.0,109870.0,109860.0,0.23176988]
[1761942247924,2.42771331,109870.0,109860.0,0.23176988]
[1761942248131,0.43689074,109880.0,109870.0,0.18203331]
[1761942248348,0.64591233,109880.0,109870.0,0.23175331]
[1761942249211,0.65039358,109880.0,109870.0,0.23175331]
[1761942250038,0.64939358,109880.0,109870.0,0.23175331]
[1761942250926,0.64639358,109880.0,109870.0,0.23175331]
[1761942251187,0.00048125,109880.0,109870.0,0.23175331]
[1761942251420,0.18249799,109880.0,109870.0,0.23175331]
[1761942251627,0.6102113,109880.0,109870.0,0.23175331]
[1761942252068,0.00048125,109880.0,109870.0,0.23175331]
[1761942252293,0.6102113,109880.0,109870.0,0.23175331]
[1761942252574,0.6102113,109880.0,109870.0,0.23375331]
[1761942253855,0.42819456,109880.0,109870.0,0.23375331]
[1761942254302,0.6102113,109880.0,109870.0,0.23375331]
[1761942254741,0.6102113,109880.0,109870.0,0.05172]
[1761942256967,0.6102113,109880.0,109870.0,0.23375331]
[1761942258133,0.18201674,109880.0,109870.0,0.23375331]
[1761942258350,0.60973005,109880.0,109870.0,0.05172]
[1761942259655,0.60973005,109880.0,109870.0,0.23375331]
[1761942261105,0.42771331,109880.0,109870.0,0.23375331]
[1761942262550,0.60973005,109880.0,109870.0,0.23375331]
[1761942264699,0.60973005,109880.0,109870.0,0.05172]
[1761942265931,0.62485005,109880.0,109870.0,0.002]
[1761942266137,0.66103233,109880.0,109870.0,0.002]
[1761942266285,0.70506015,109880.0,109870.0,0.002]
[1761942266494,0.68839015,109880.0,109870.0,0.002]
[1761942266708,0.68839015,109880.0,109870.0,0.01776]
[1761942269692,0.68754684,109880.0,109870.0,0.0536]
[1761942271278,0.70266684,109880.0,109870.0,0.02978]
[1761942274234,0.70266684,109880.0,109870.0,0.0536]
[1761942275111,0.68839015,109880.0,109870.0,0.0536]
[1761942275771,0.67327015,109880.0,109870.0,0.0536]
[1761942276208,0.67327015,109880.0,109870.0,0.23563331]
[1761942277331,0.02735782,109880.0,109870.0,0.23563331]
[1761942277555,0.63994026,109890.0,109870.0,0.23563331]
[1761942277793,0.66501447,109890.0,109880.0,0.0516]
[1761942278058,0.69237037,109890.0,109880.0,0.0516]
[1761942278277,0.68385144,109890.0,109880.0,0.23361674]
[1761942278491,0.69812655,109890.0,109880.0,0.23361674]
[1761942278708,0.68879651,109890.0,109880.0,0.23361674]
[1761942281336,0.68879651,109890.0,109880.0,0.0536]
[1761942282003,0.71224651,109890.0,109880.0,0.02978]
[1761942282670,0.2845332,109890.0,109880.0,0.02978]
[1761942282887,0.71224651,109890.0,109880.0,0.02978]
[1761942283576,1.13995982,109890.0,109880.0,0.002]
[1761942283795,1.15662982,109890.0,109880.0,0.002]
[1761942284236,1.13995982,109890.0,109880.0,0.002]
[1761942284679,0.71224651,109890.0,109880.0,0.002]
[1761942285565,1.13936726,109890.0,109880.0,0.002]
[1761942286020,1.13936726,109890.0,109880.0,0.01757]
[1761942288024,1.13936726,109890.0,109880.0,0.002]
[1761942288429,1.12509215,109890.0,109880.0,0.002]
[1761942289236,1.14176215,109890.0,109880.0,0.002]
[1761942289617,1.12509215,109890.0,109880.0,0.002]
[1761942290638,1.15027796,109890.0,109880.0,0.002]
[1761942291061,1.13360796,109890.0,109880.0,0.01757]
[1761942291267,1.12509215,109890.0,109880.0,0.01757]
[1761942291989,1.14788388,109890.0,109880.0,0.01757]
[1761942292325,1.14788388,109890.0,109880.0,0.002]
[1761942293604,1.14788388,109890.0,109880.0,0.01757]
[1761942294062,1.1117016,109890.0,109880.0,0.01757]
[1761942294798,1.1117016,109890.0,109880.0,0.02999]
[1761942295010,0.68428448,109890.0,109880.0,0.02999]
[1761942295220,0.67576813,109890.0,109880.0,0.02999]
[1761942296312,0.68428454,109890.0,109880.0,0.02999]
[1761942296530,1.11170157,109890.0,109880.0,0.01757]
[1761942297494,1.11170157,109890.0,109880.0,0.002]
[1761942297740,1.11170157,109890.0,109880.0,0.01757]
[1761942300606,1.12837157,109890.0,109880.0,0.002]
[1761942302404,3.63275983,109890.0,109880.0,0.002]
[1761942303116,3.52455246,109890.0,109880.0,0.002]
[1761942303367,3.54122246,109890.0,109880.0,0.002]
[1761942303613,3.52694717,109890.0,109880.0,0.002]
[1761942304744,3.54122836,109890.0,109880.0,0.002]
[1761942305225,3.09714133,109890.0,109880.0,0.01757]
[1761942305460,1.08286014,109890.0,109880.0,0.02999]
[1761942305940,0.74286014,109890.0,109880.0,0.02999]
[1761942306201,0.75714118,109890.0,109880.0,0.02999]
[1761942306875,0.75771118,109890.0,109880.0,0.02999]
[1761942308183,1.18512821,109890.0,109880.0,0.02999]
[1761942308378,1.18513752,109890.0,109880.0,0.02999]
[1761942308587,1.18513752,109890.0,109880.0,0.002]
[1761942309018,0.75772049,109890.0,109880.0,0.002]
[1761942309230,0.77439049,109890.0,109880.0,0.002]
[1761942309874,0.75772049,109890.0,109880.0,0.002]
[1761942310492,0.75772049,109890.0,109880.0,0.01757]
[1761942310701,0.75772049,109890.0,109880.0,0.02999]
[1761942310916,0.77199617,109890.0,109880.0,0.05294]
[1761942311121,0.77199617,109890.0,109880.0,0.02999]
[1761942311976,0.75495513,109890.0,109880.0,0.02999]
[1761942312182,0.77200915,109890.0,109880.0,0.02999]
[1761942312986,0.75631915,109890.0,109880.0,0.23495674]
[1761942313190,0.75632053,109890.0,109880.0,0.23495674]
[1761942313418,0.72013825,109890.0,109880.0,0.23495674]
[1761942313627,0.4931251,109890.0,109880.0,0.23495674]
[1761942313985,0.47884406,109890.0,109880.0,0.23495674]
[1761942314625,0.66084424,109890.0,109880.0,0.23495674]
[1761942314844,0.47884406,109890.0,109880.0,0.23495674]
[1761942315254,0.47031834,109890.0,109880.0,0.23495674]
[1761942315710,0.65231852,109890.0,109880.0,0.23495674]
[1761942315920,0.47031834,109890.0,109880.0,0.23495674]
[1761942316590,0.04290131,109890.0,109880.0,0.32649411]
[1761942316810,0.01554541,109890.0,109880.0,0.32649411]
[1761942318338,0.01554541,109890.0,109880.0,0.75391114]
[1761942318549,0.00126973,109890.0,109880.0,0.75391114]
[1761942319007,0.00126973,109890.0,109880.0,0.75191114]
[1761942319215,0.00126973,109890.0,109880.0,1.17932817]
[1761942319428,0.00126973,109890.0,109880.0,0.75191114]
[1761942319635,0.00126973,109890.0,109880.0,0.77925843]
[1761942319844,0.00126973,109890.0,109880.0,0.78725843]
[1761942320319,0.0142726,109910.0,109900.0,0.21047362]
[1761942320528,0.19623988,109910.0,109900.0,0.21047362]
[1761942320737,0.62365691,109910.0,109900.0,0.23471362]
[1761942320965,0.60982761,109910.0,109900.0,0.23471362]
[1761942321185,0.18241058,109910.0,109900.0,0.05273]
[1761942321664,0.60982761,109910.0,109900.0,0.05373]
[1761942322406,0.60982761,109910.0,109900.0,0.23571362]
[1761942322620,0.60982761,109910.0,109900.0,0.05373]
[1761942325251,1.06110464,109910.0,109900.0,0.02949]
[1761942325486,3.54987862,109910.0,109900.0,0.001]
[1761942325717,3.93423812,109910.0,109900.0,0.001]
[1761942325938,3.95383154,109910.0,109900.0,0.001]
[1761942326156,3.97870101,109910.0,109900.0,0.001]
[1761942327036,0.18200018,109890.0,109880.0,0.01242]
[1761942327256,1.06069424,109890.0,109880.0,0.0285]
[1761942327687,1.06069424,109890.0,109880.0,0.01242]
[1761942327902,1.08804904,109890.0,109880.0,0.0285]
[1761942328777,1.08804904,109890.0,109880.0,0.0295]
[1761942330105,1.10232944,109890.0,109880.0,0.0295]
[1761942332370,1.10232944,109890.0,109880.0,0.01342]
[1761942333691,1.10232944,109890.0,109880.0,0.0295]
[1761942334135,1.10232944,109890.0,109880.0,0.01342]
[1761942335606,1.10232944,109890.0,109880.0,0.0295]
[1761942336515,1.10232944,109890.0,109880.0,0.01342]
[1761942338275,1.10232944,109890.0,109880.0,0.0295]
[1761942340156,1.08804904,109890.0,109880.0,0.0295]
[1761942340354,1.08804904,109890.0,109880.0,0.01342]
[1761942340737,1.08804904,109890.0,109880.0,0.0295]
[1761942342195,1.08804904,109890.0,109880.0,0.01342]
[1761942342413,1.10471904,109890.0,109880.0,0.001]
[1761942343002,1.14090132,109890.0,109880.0,0.001]
[1761942344110,1.15517663,109890.0,109880.0,0.001]
[1761942344377,1.14090132,109890.0,109880.0,0.001]
[1761942345498,1.14098866,109890.0,109880.0,0.001]
[1761942346593,3.14098866,109890.0,109880.0,0.001]
[1761942347020,3.16377037,109890.0,109880.0,0.001]
[1761942348129,3.15526425,109890.0,109880.0,0.001]
[1761942348337,3.16376977,109890.0,109880.0,0.001]
[1761942351431,3.18337303,109890.0,109880.0,0.001]
[1761942353602,3.20039975,109890.0,109880.0,0.001]
[1761942354273,3.18337303,109890.0,109880.0,0.001]
[1761942354484,3.20040634,109890.0,109880.0,0.001]
[1761942356731,2.35976624,109890.0,109880.0,0.001]
[1761942356960,3.21468764,109890.0,109880.0,0.001]
[1761942357175,3.20041205,109890.0,109880.0,0.001]
[1761942358695,3.18374205,109890.0,109880.0,0.001]
[1761942358927,3.20041205,109890.0,109880.0,0.001]
[1761942360024,3.18374205,109890.0,109880.0,0.001]
[1761942360459,3.1980472,109890.0,109880.0,0.001]
[1761942362445,3.2147172,109890.0,109880.0,0.001]
[1761942363279,3.1980472,109890.0,109880.0,0.001]
[1761942364580,3.2147172,109890.0,109880.0,0.001]
[1761942367039,3.20044161,109890.0,109880.0,0.001]
[1761942367214,3.63026062,109890.0,109880.0,0.001]
[1761942367412,3.65513009,109890.0,109880.0,0.001]
[1761942367665,3.65713009,109890.0,109880.0,0.001]
[1761942367895,3.65713009,109890.0,109870.0,0.00013122]
[1761942367896,2.55819902,109880.0,109870.0,0.00013122]
[1761942368132,3.13778599,109880.0,109870.0,0.00013122]
[1761942368344,3.15445599,109880.0,109870.0,0.00013122]
[1761942368580,3.18181673,109880.0,109870.0,0.00013122]
[1761942370100,3.18281673,109880.0,109870.0,0.00013122]
[1761942370537,3.19709348,109880.0,109870.0,0.00013122]
[1761942370763,3.18281673,109880.0,109870.0,0.00013122]
[1761942371736,3.15545599,109880.0,109870.0,0.00013122]
[1761942373576,3.16973296,109880.0,109870.0,0.00013122]
[1761942375171,3.15073296,109880.0,109870.0,0.00013122]
[1761942376388,2.95131941,109880.0,109870.0,0.00013122]
[1761942376595,3.13333615,109880.0,109870.0,0.00013122]
[1761942380195,2.79355068,109880.0,109870.0,0.00013122]
[1761942381657,2.77927371,109880.0,109870.0,0.00013122]
[1761942382070,2.79355585,109880.0,109870.0,0.00013122]
[1761942382282,2.77927371,109880.0,109870.0,0.00013122]
[1761942383362,2.75372763,109880.0,109870.0,0.00013122]
[1761942383567,2.77927441,109880.0,109870.0,0.00013122]
[1761942384838,2.79355171,109880.0,109870.0,0.00013122]
[1761942385307,3.66245704,109880.0,109870.0,0.00013122]
[1761942387063,3.61147696,109880.0,109870.0,0.00013122]
[1761942387731,3.67943253,109880.0,109870.0,0.00013122]
[1761942396049,3.66514997,109880.0,109870.0,0.00013122]
[1761942397185,3.65087267,109880.0,109870.0,0.00013122]
[1761942398511,3.6651556,109880.0,109870.0,0.00013122]
[1761942399417,3.75497461,109880.0,109870.0,0.00013122]
[1761942400606,3.76925311,109880.0,109870.0,0.00013122]
[1761942400824,3.6794341,109880.0,109870.0,0.00013122]
[1761942407327,4.10748985,109880.0,109870.0,0.00013122]
[1761942409008,4.09323063,109880.0,109870.0,0.00013122]
[1761942410224,4.07895213,109880.0,109870.0,0.00013122]
[1761942412230,4.09323538,109880.0,109870.0,0.00013122]
[1761942413527,4.10751388,109880.0,109870.0,0.00013122]
[1761942413938,4.09323538,109880.0,109870.0,0.00013122]
[1761942415382,4.18305439,109880.0,109870.0,0.00013122]
[1761942416701,4.19733289,109880.0,109870.0,0.00013122]
[1761942417102,4.10751388,109880.0,109870.0,0.00013122]
[1761942420384,4.10672295,109880.0,109870.0,0.00013122]
[1761942420809,4.534382,109880.0,109870.0,0.00013122]
[1761942421018,4.09244445,109880.0,109870.0,0.00013122]
[1761942421442,4.14154219,109880.0,109870.0,0.00013122]
[1761942421640,3.99058468,109880.0,109870.0,0.00013122]
[1761942423812,3.97630143,109880.0,109870.0,0.00013122]
[1761942424228,3.9905804,109880.0,109870.0,0.00013122]
[1761942425756,3.90076139,109880.0,109870.0,0.00013122]
[1761942426480,3.90076563,109880.0,109870.0,0.00013122]
[1761942426913,3.91504926,109880.0,109870.0,0.00013122]
[1761942428240,3.91704926,109880.0,109870.0,0.00013122]
[1761942428684,3.91691159,109880.0,109870.0,0.00013122]
[1761942428852,4.0067306,109880.0,109870.0,0.00013122]
[1761942429057,4.0047306,109880.0,109870.0,0.00013122]
[1761942429466,4.0067306,109880.0,109870.0,0.00013122]
[1761942430116,5.28770775,109880.0,109870.0,1e-08]
[1761942430549,5.3150725,109880.0,109870.0,1e-08]
[1761942430766,5.3170725,109880.0,109870.0,1e-08]
[1761942430968,5.22525349,109880.0,109870.0,1e-08]
[1761942431420,5.19788874,109880.0,109870.0,1e-08]
[1761942431639,5.24698648,109880.0,109870.0,1e-08]
[1761942432089,5.26898162,109880.0,109870.0,1e-08]
[1761942432965,5.26698162,109880.0,109870.0,1e-08]
[1761942433189,5.35880063,109880.0,109870.0,1e-08]
[1761942433684,5.34880064,109880.0,109870.0,1e-08]
[1761942433928,5.35880063,109880.0,109870.0,1e-08]
[1761942434160,5.35680063,109880.0,109870.0,1e-08]
[1761942434377,5.34452166,109880.0,109870.0,1e-08]
[1761942434593,5.34252166,109880.0,109870.0,1e-08]
[1761942435052,5.34452166,109880.0,109870.0,1e-08]
[1761942435266,5.34252166,109880.0,109870.0,1e-08]
[1761942436144,5.33979141,109880.0,109870.0,1e-08]
[1761942436394,5.34179141,109880.0,109870.0,1e-08]
[1761942436813,5.33979141,109880.0,109870.0,1e-08]
[1761942437031,5.2499724,109880.0,109870.0,1e-08]
[1761942437678,5.24996882,109880.0,109870.0,1e-08]
[1761942437894,5.25196882,109880.0,109870.0,1e-08]
[1761942438101,5.24996882,109880.0,109870.0,1e-08]
[1761942439161,5.25196882,109880.0,109870.0,1e-08]
[1761942439620,5.24196883,109880.0,109870.0,1e-08]
[1761942439831,5.24996882,109880.0,109870.0,1e-08]
[1761942440046,5.33978783,109880.0,109870.0,1e-08]
[1761942440264,5.34178783,109880.0,109870.0,1e-08]
[1761942440681,5.33978783,109880.0,109870.0,1e-08]
[1761942441577,5.34178783,109880.0,109870.0,1e-08]
[1761942442207,5.33978783,109880.0,109870.0,1e-08]
[1761942443067,5.34178783,109880.0,109870.0,1e-08]
[1761942443505,5.33978783,109880.0,109870.0,1e-08]
[1761942444163,5.33178784,109880.0,109870.0,1e-08]
[1761942444360,5.33978783,109880.0,109870.0,1e-08]
[1761942444570,5.34178783,109880.0,109870.0,1e-08]
[1761942445006,5.33978783,109880.0,109870.0,1e-08]
[1761942445449,5.34178783,109880.0,109870.0,1e-08]
[1761942446294,5.33178784,109880.0,109870.0,1e-08]
[1761942446535,5.34178783,109880.0,109870.0,1e-08]
[1761942447353,5.33978783,109880.0,109870.0,1e-08]
[1761942447565,5.34178783,109880.0,109870.0,1e-08]
[1761942447995,5.32750778,109880.0,109870.0,1e-08]
[1761942448206,5.32550778,109880.0,109870.0,1e-08]
[1761942448528,5.32748389,109880.0,109870.0,1e-08]
[1761942450046,5.22566489,109880.0,109870.0,1e-08]
[1761942451111,5.22766489,109880.0,109870.0,1e-08]
[1761942451320,5.26422949,109880.0,109870.0,1e-08]
[1761942451586,5.25194493,109880.0,109870.0,1e-08]
[1761942452468,5.24994493,109880.0,109870.0,1e-08]
[1761942452697,0.18206645,109850.0,109830.0,0.0021138]
[1761942452913,2.63411207,109840.0,109830.0,0.0021138]
[1761942453129,2.65078207,109840.0,109830.0,0.02947855]
[1761942453341,2.67039047,109840.0,109830.0,0.02947855]
[1761942453554,2.65078207,109840.0,109830.0,0.02947855]
[1761942453771,2.65989348,109840.0,109830.0,0.02947855]
[1761942454207,3.08755253,109840.0,109830.0,0.02947855]
[1761942455320,3.08755253,109840.0,109830.0,0.03147855]
[1761942456187,3.08482129,109840.0,109830.0,0.03147855]
[1761942464425,3.09910301,109840.0,109830.0,0.03147855]
[1761942464904,3.54104761,109840.0,109830.0,0.03147855]
[1761942465111,3.54635123,109840.0,109830.0,0.03147855]
[1761942467271,3.53206951,109840.0,109830.0,0.02947855]
[1761942467685,3.53206951,109840.0,109830.0,0.03047855]
[1761942468130,3.10441046,109840.0,109830.0,0.03047855]
[1761942468782,3.11869622,109840.0,109830.0,0.03047855]
[1761942469449,2.69120241,109840.0,109830.0,0.03047855]
[1761942472296,2.67161324,109840.0,109830.0,0.03047855]
[1761942475048,2.47559146,109840.0,109830.0,0.22907815]
[1761942475258,0.62419307,109840.0,109830.0,0.26417815]
[1761942475923,0.42782429,109840.0,109830.0,0.26417815]
[1761942476632,0.60990731,109840.0,109830.0,0.26417815]
[1761942479062,0.42782429,109840.0,109830.0,0.26417815]
[1761942479302,0.60990731,109840.0,109830.0,0.26417815]
[1761942480911,0.62418876,109840.0,109830.0,0.26417815]
[1761942482697,0.63988876,109840.0,109830.0,0.05864855]
[1761942483148,0.44210574,109840.0,109830.0,0.26417815]
[1761942483359,0.01428145,109840.0,109830.0,0.26417815]
[1761942483570,0.44210574,109840.0,109830.0,0.26417815]
[1761942485524,0.42782429,109840.0,109830.0,0.26417815]
[1761942485987,0.60990731,109840.0,109830.0,0.08207855]
[1761942486405,0.60990731,109840.0,109830.0,0.26417815]
[1761942486977,0.60990731,109840.0,109830.0,0.08207855]